bitfinex-derivatives/quotes_ETHF0:USTF0_20241022
["timestamp","ask_amount","ask_price","bid_price","bid_amount"]
[1729633515991,2.33017799,2636.8,2636.7,0.37942]
[1729633516484,2.13702,2636.8,2636.7,0.37942]
[1729633517287,2.56282,2636.8,2636.7,0.37942]
[1729633517996,2.56282,2636.8,2636.7,0.37943]
[1729633519493,1.19282,2636.8,2636.7,0.37943]
[1729633519695,2.56282,2636.8,2636.7,0.37943]
[1729633519889,2.75253934,2636.8,2636.7,0.37943]
[1729633520401,2.56282,2636.8,2636.7,0.37943]
[1729633522000,0.37942,2636.8,2636.7,4.17223]
[1729633522206,0.37942,2636.8,2636.7,5.54223]
[1729633522704,0.56716448,2636.8,2636.7,5.54223]
[1729633522905,1.74942,2636.8,2636.7,4.17223]
[1729633523498,0.37942,2636.8,2636.7,4.17223]
[1729633523701,0.56714549,2636.8,2636.7,4.17223]
[1729633523911,0.37942,2636.8,2636.7,4.17223]
[1729633524505,0.18834927,2636.8,2636.7,4.17223]
[1729633525107,1.74941,2636.9,2636.8,0.37941]
[1729633525409,1.74941,2636.9,2636.8,4.17221]
[1729633525607,1.93553758,2636.9,2636.8,4.17221]
[1729633526409,1.74941,2636.9,2636.8,4.17221]
[1729633526911,1.93458815,2636.9,2636.8,4.17221]
[1729633529411,0.37941,2636.9,2636.8,4.17221]
[1729633529614,1.74941,2636.9,2636.8,4.17221]
[1729633530105,1.93962016,2636.9,2636.8,4.17221]
[1729633531211,1.93962016,2636.9,2636.8,0.37941]
[1729633532704,1.74941,2636.9,2636.8,0.37941]
[1729633536917,0.37941,2636.9,2636.8,0.37941]
[1729633538118,0.37941,2636.9,2636.8,1.74941]
[1729633548832,0.37939,2637.0,2636.9,0.37939]
[1729633562838,0.37939,2637.0,2636.9,0.77359]
[1729633588146,0.37939,2637.0,2636.9,3.98139]
[1729633590155,0.37939,2637.0,2636.9,0.77359]
[1729633590557,0.37939,2637.0,2636.9,3.98139]
[1729633591651,0.37939,2637.0,2636.9,0.77359]
[1729633592655,0.37939,2637.0,2636.9,3.98139]
[1729633595058,0.37939,2637.0,2636.9,0.77359]
[1729633595664,0.37939,2637.0,2636.9,3.98139]
[1729633597348,0.37939,2637.0,2636.9,0.77359]
[1729633597553,0.37939,2637.0,2636.9,3.98139]
[1729633599061,0.37939,2637.0,2636.9,0.77359]
[1729633599255,0.37939,2637.0,2636.9,3.98139]
[1729633600058,0.37939,2637.0,2636.9,0.77359]
[1729633600671,0.37939,2637.0,2636.9,3.98139]
[1729633601366,0.37939,2637.0,2636.9,0.77359]
[1729633601658,0.37939,2637.0,2636.9,3.98139]
[1729633604862,0.37939,2637.0,2636.9,0.77359]
[1729633610191,0.37939,2637.0,2636.9,2.14359]
[1729633614185,0.80328,2637.1,2637.0,0.37938]
[1729633626001,0.80328,2637.1,2637.0,1.74938]
[1729633629996,0.80328,2637.1,2637.0,0.37938]
[1729633649426,4.2159,2637.1,2636.9,3.2078]
[1729633649624,4.17138,2637.0,2636.9,4.95718]
[1729633652423,3.792,2637.0,2636.9,4.95718]
[1729633653226,3.792,2637.0,2636.9,4.9572]
[1729633654123,3.792,2637.0,2636.9,1.7494]
[1729633654430,3.792,2637.0,2636.9,4.9572]
[1729633654927,3.792,2637.0,2636.9,1.7494]
[1729633655324,3.792,2637.0,2636.9,4.9572]
[1729633655733,0.80328,2637.1,2637.0,0.37938]
[1729633655927,0.80328,2637.1,2637.0,1.74938]
[1729633656124,4.59528,2637.1,2637.0,1.74938]
[1729633662631,0.37938,2637.0,2636.9,3.2078]
[1729633662825,0.37938,2637.0,2636.6,4.95724]
[1729633662826,0.37943,2636.7,2636.6,4.95724]
[1729633663226,0.37943,2636.7,2636.6,4.5778]
[1729633663423,1.57653,2636.7,2636.6,4.95724]
[1729633666035,1.1971,2636.7,2636.6,4.95724]
[1729633669540,1.1971,2636.7,2636.6,1.74944]
[1729633669832,1.1971,2636.7,2636.6,4.95724]
[1729633670942,5.36933,2636.7,2636.6,3.2078]
[1729633671438,4.9899,2636.7,2636.6,3.58724]
[1729633672338,6.3599,2636.7,2636.6,3.58724]
[1729633672537,5.36933,2636.7,2636.6,3.58724]
[1729633673043,4.9899,2636.7,2636.6,3.58724]
[1729633673337,4.9899,2636.7,2636.6,4.95724]
[1729633675136,1.1971,2636.7,2636.6,4.95724]
[1729633675437,1.1971,2636.7,2636.6,1.74944]
[1729633675940,1.1971,2636.7,2636.6,4.95724]
[1729633676334,1.1971,2636.7,2636.6,1.74944]
[1729633676533,1.1971,2636.7,2636.6,4.95724]
[1729633677137,1.1971,2636.7,2636.6,1.74944]
[1729633677338,1.1971,2636.7,2636.6,4.95724]
[1729633679731,1.1971,2636.7,2636.6,1.74944]
[1729633680329,1.1971,2636.7,2636.6,4.95724]
[1729633682144,1.1971,2636.7,2636.6,1.74944]
[1729633682438,1.1971,2636.7,2636.6,4.95724]
[1729633682639,1.1971,2636.7,2636.6,1.74944]
[1729633682840,1.1971,2636.7,2636.6,4.95724]
[1729633683238,4.9899,2636.7,2636.6,4.95724]
[1729633683442,4.9899,2636.7,2636.6,1.74944]
[1729633683842,4.9899,2636.7,2636.6,4.95724]
[1729633684237,5.36933,2636.7,2636.6,4.95724]
[1729633684953,5.36933,2636.7,2636.6,1.74944]
[1729633685446,5.36933,2636.7,2636.6,4.95724]
[1729633685646,5.36933,2636.7,2636.6,1.74944]
[1729633685847,5.36933,2636.7,2636.6,4.95724]
[1729633686444,5.36933,2636.7,2636.6,1.74944]
[1729633686949,5.36933,2636.7,2636.6,4.95724]
[1729633688143,1.57653,2636.7,2636.6,4.95724]
[1729633688341,1.57653,2636.7,2636.6,1.74944]
[1729633688944,1.57653,2636.7,2636.6,4.95724]
[1729633689550,1.57653,2636.7,2636.6,1.74944]
[1729633689951,1.57653,2636.7,2636.6,4.95724]
[1729633690451,1.57653,2636.7,2636.6,1.74944]
[1729633690843,1.57653,2636.7,2636.6,4.95724]
[1729633691550,1.57653,2636.7,2636.6,1.74944]
[1729633691949,1.57653,2636.7,2636.6,4.95724]
[1729633692347,1.57653,2636.7,2636.6,1.74944]
[1729633693056,1.57653,2636.7,2636.6,4.95724]
[1729633694257,1.57653,2636.7,2636.6,1.74944]
[1729633694460,1.57653,2636.7,2636.6,4.95724]
[1729633695155,1.1971,2636.7,2636.6,1.74944]
[1729633696851,1.1971,2636.7,2636.6,4.95724]
[1729633697246,1.1971,2636.7,2636.6,1.74944]
[1729633697756,1.1971,2636.7,2636.6,4.95724]
[1729633698145,1.1971,2636.7,2636.6,1.74944]
[1729633698957,1.1971,2636.7,2636.6,4.95724]
[1729633700562,1.1971,2636.7,2636.6,3.58724]
[1729633701059,1.1971,2636.7,2636.6,3.98904]
[1729633701254,1.1971,2636.7,2636.6,0.78124]
[1729633701852,1.1971,2636.7,2636.6,3.98904]
[1729633702556,1.1971,2636.7,2636.6,0.78124]
[1729633702959,1.1971,2636.7,2636.6,3.98904]
[1729633703258,1.1971,2636.7,2636.6,0.78124]
[1729633703757,1.1971,2636.7,2636.6,3.98904]
[1729633704555,1.1971,2636.7,2636.6,0.78124]
[1729633704954,1.1971,2636.7,2636.6,3.98904]
[1729633705148,1.1971,2636.7,2636.6,3.58724]
[1729633705353,1.57653,2636.7,2636.6,3.58724]
[1729633705560,1.57653,2636.7,2636.6,3.2078]
[1729633706353,1.57653,2636.7,2636.6,3.58724]
[1729633707253,1.57653,2636.7,2636.6,0.37944]
[1729633709356,2.08668563,2636.7,2636.6,0.37944]
[1729633719258,1.57653,2636.7,2636.6,0.37944]
[1729633723762,0.37946,2636.5,2636.4,3.58726]
[1729633725768,0.37946,2636.5,2636.4,0.37946]
[1729633726072,0.37946,2636.5,2636.4,3.58726]
[1729633726367,0.37946,2636.5,2636.4,0.37946]
[1729633726568,0.37946,2636.5,2636.4,3.58726]
[1729633727167,2.94653,2636.7,2636.5,0.37946]
[1729633727365,2.94653,2636.7,2636.6,0.37944]
[1729633727966,2.94653,2636.7,2636.6,0.78574]
[1729633733275,0.37943,2636.7,2636.6,0.78574]
[1729633733473,1.93496242,2636.8,2636.7,0.37943]
[1729633733866,5.72776242,2636.8,2636.7,0.37943]
[1729633734173,4.35776242,2636.8,2636.7,0.37943]
[1729633734361,5.72776242,2636.8,2636.7,0.37943]
[1729633734564,1.93496242,2636.8,2636.7,0.37943]
[1729633737268,0.56496242,2636.8,2636.7,0.37943]
[1729633737472,6.986,2637.5,2636.7,3.7928]
[1729633737678,0.37937,2637.2,2637.1,0.37936]
[1729633737973,1.37,2637.2,2637.1,0.37937]
[1729633740771,1.37,2637.2,2637.1,0.76867]
[1729633744180,0.37935,2637.3,2637.1,0.3893]
[1729633744478,0.37935,2637.3,2637.2,0.37936]
[1729633744479,1.74935,2637.3,2637.2,0.37936]
[1729633747074,0.57637244,2637.5,2637.1,1.7593]
[1729633747277,0.37934,2637.4,2637.3,0.37934]
[1729633747481,1.74934,2637.4,2637.3,0.37934]
[1729633749382,0.37935,2637.3,2637.2,0.37934]
[1729633750577,1.74935,2637.3,2637.2,0.37934]
[1729633751986,1.37,2637.3,2637.2,4.17134]
[1729633759987,1.37,2637.4,2637.3,0.37934]
[1729633761497,2.13992,2637.5,2637.4,0.37933]
[1729633762090,2.33396923,2637.5,2637.4,0.37933]
[1729633763388,2.13992,2637.5,2637.4,0.37933]
[1729633764093,2.33043795,2637.5,2637.4,0.37933]
[1729633764886,2.13992,2637.5,2637.4,0.37933]
[1729633765497,2.33205171,2637.5,2637.4,0.37933]
[1729633770998,2.13992,2637.5,2637.4,0.37933]
[1729633771400,2.32949399,2637.5,2637.4,0.37933]
[1729633771701,2.13992,2637.5,2637.4,0.37933]
[1729633772398,2.33258838,2637.5,2637.4,0.37933]
[1729633772600,2.33258838,2637.5,2637.4,0.78103]
[1729633772801,2.13992,2637.5,2637.4,0.78103]
[1729633773498,2.33105068,2637.5,2637.4,0.78103]
[1729633774395,2.13992,2637.5,2637.4,0.78103]
[1729633776104,2.93792,2637.5,2637.4,0.78103]
[1729633777996,1.56792,2637.5,2637.4,0.78103]
[1729633778197,1.1886,2637.5,2637.4,0.78103]
[1729633778489,1.56791,2637.5,2637.4,0.78103]
[1729633779106,7.1568,2637.5,2636.6,3.2078]
[1729633779305,1.74943,2636.7,2636.6,3.2078]
[1729633787704,5.54223,2636.7,2636.6,3.2078]
[1729633788409,1.74943,2636.7,2636.6,3.2078]
[1729633788813,5.54223,2636.7,2636.6,3.2078]
[1729633790220,0.37946,2636.5,2636.4,0.37947]
[1729633790404,1.74946,2636.5,2636.4,3.58727]
[1729633792021,1.74946,2636.5,2636.4,0.37947]
[1729633792210,1.74946,2636.5,2636.4,3.58727]
[1729633794613,1.74946,2636.5,2636.4,0.37947]
[1729633795414,1.74946,2636.5,2636.4,3.58727]
[1729633796323,0.37946,2636.5,2636.4,3.58727]
[1729633796710,1.20146,2636.5,2636.4,3.58727]
[1729633797619,1.20146,2636.5,2636.4,0.37947]
[1729633797819,1.20146,2636.5,2636.4,3.58727]
[1729633799014,1.20146,2636.5,2636.4,0.37947]
[1729633799526,1.20146,2636.5,2636.4,3.58727]
[1729633801020,1.20146,2636.5,2636.4,0.37947]
[1729633801221,1.20146,2636.5,2636.4,3.58727]
[1729633801821,1.20146,2636.5,2636.4,0.37947]
[1729633802024,1.20146,2636.5,2636.4,3.58727]
[1729633804727,1.20146,2636.5,2636.4,0.37947]
[1729633805028,1.20146,2636.5,2636.4,3.58727]
[1729633806327,1.20146,2636.5,2636.4,0.37947]
[1729633806723,1.20146,2636.5,2636.4,3.58727]
[1729633811633,1.20146,2636.5,2636.4,0.37947]
[1729633811831,2.57146,2636.5,2636.4,3.58727]
[1729633812330,1.74946,2636.5,2636.4,3.58727]
[1729633814726,1.74946,2636.5,2636.4,3.2078]
[1729633815529,1.74946,2636.5,2636.4,3.58727]
[1729633816740,0.37946,2636.5,2636.4,3.58727]
[1729633817639,0.37946,2636.5,2636.4,0.37947]
[1729633817839,0.37946,2636.5,2636.4,3.58727]
[1729633818238,0.37946,2636.5,2636.4,0.37947]
[1729633824950,0.37943,2636.7,2636.6,0.37943]
[1729633825138,4.5778,2636.9,2636.4,0.8084]
[1729633825338,4.5778,2636.9,2636.8,0.37941]
[1729633828142,1.37,2636.9,2636.8,0.37941]
[1729633833448,0.3794,2637.0,2636.8,3.7928]
[1729633833653,3.58718,2637.1,2637.0,0.37938]
[1729633833841,4.95718,2637.1,2637.0,0.37938]
[1729633834046,4.95718,2637.1,2637.0,0.79538]
[1729633834451,1.74938,2637.1,2637.0,0.416]
[1729633837355,1.74938,2637.1,2637.0,0.79538]
[1729633841053,1.37,2637.1,2637.0,0.79538]
[1729633843650,1.37,2637.1,2637.0,0.37938]
[1729633843851,1.7841,2637.1,2637.0,0.37938]
[1729633849561,0.4141,2637.1,2637.0,0.37938]
[1729633851153,0.37936,2637.2,2637.1,0.37937]
[1729633852162,1.74936,2637.2,2637.1,0.37937]
[1729633856059,2.15446,2637.2,2637.1,0.37937]
[1729633860457,0.37937,2637.1,2637.0,0.37937]
[1729633861562,1.74937,2637.1,2637.0,0.37937]
[1729633867961,1.37,2637.1,2637.0,0.37937]
[1729633881081,1.37,2637.1,2637.0,0.30589466]
[1729633884175,1.74937,2637.1,2637.0,0.30589466]
[1729633884779,1.37,2637.1,2637.0,0.30589466]
[1729633893383,1.74937,2637.1,2637.0,0.30589466]
[1729633896285,1.74937,2637.1,2637.0,0.24712178]
[1729633898705,0.37937,2637.1,2637.0,0.24712178]
[1729633898907,1.74937,2637.1,2637.0,0.24712178]
[1729633899099,0.37937,2637.1,2637.0,0.24712178]
[1729633899305,1.74937,2637.1,2637.0,0.24712178]
[1729633909113,1.37,2637.1,2637.0,0.24712178]
[1729633909315,5.162,2637.1,2636.9,3.2078]
[1729633909606,5.162,2637.1,2636.9,3.58719]
[1729633909607,0.3897,2637.0,2636.9,3.58719]
[1729633909915,2.1488,2637.0,2636.9,3.58719]
[1729633914214,2.1488,2637.0,2636.9,0.37939]
[1729633914614,2.1488,2637.0,2636.9,3.58719]
[1729633915218,1.7597,2637.0,2636.9,3.58719]
[1729633915526,1.37,2637.1,2637.0,0.37938]
[1729633915811,1.7687,2637.1,2637.0,0.37938]
[1729633917713,0.3987,2637.1,2637.0,0.37938]
[1729633917919,1.7687,2637.1,2637.0,0.37938]
[1729633918317,1.7687,2637.1,2637.0,0.3069773]
[1729633926927,2.14807,2637.1,2637.0,0.3069773]
[1729633928326,1.7687,2637.1,2637.0,0.3069773]
[1729633928823,0.3987,2637.1,2637.0,0.3069773]
[1729633929022,1.7687,2637.1,2637.0,0.3069773]
[1729633933529,1.7687,2637.1,2637.0,3.5147773]
[1729633934131,1.7687,2637.1,2637.0,2.8494133]
[1729633934325,1.7687,2637.1,2637.0,0.37938]
[1729633934527,1.7687,2637.1,2637.0,3.58718]
[1729633935426,1.7687,2637.1,2637.0,0.37938]
[1729633935626,1.7687,2637.1,2637.0,3.58718]
[1729633936331,1.7687,2637.1,2637.0,0.37938]
[1729633936528,1.7687,2637.1,2637.0,3.58718]
[1729633937331,1.7687,2637.1,2637.0,0.37938]
[1729633937630,2.14807,2637.1,2637.0,0.37938]
[1729633937830,2.14807,2637.1,2637.0,3.58718]
[1729633939433,1.7687,2637.1,2637.0,3.58718]
[1729633940533,1.7687,2637.1,2637.0,0.37938]
[1729633940733,1.7687,2637.1,2637.0,3.58718]
[1729633941233,2.14807,2637.1,2637.0,3.58718]
[1729633941630,2.14807,2637.1,2637.0,0.37938]
[1729633941937,2.14807,2637.1,2637.0,3.58718]
[1729633942134,1.7687,2637.1,2637.0,3.58718]
[1729633942633,1.7687,2637.1,2637.0,0.37938]
[1729633943034,1.7687,2637.1,2637.0,3.58718]
[1729633943636,1.7687,2637.1,2637.0,0.37938]
[1729633943834,1.7687,2637.1,2637.0,3.58718]
[1729633944538,1.7687,2637.1,2637.0,0.37938]
[1729633944738,2.14807,2637.1,2637.0,0.37938]
[1729633945434,2.14807,2637.1,2637.0,3.58718]
[1729633945936,2.14807,2637.1,2637.0,0.37938]
[1729633946131,2.14807,2637.1,2637.0,3.58718]
[1729633946331,2.14807,2637.1,2637.0,0.37938]
[1729633946534,2.14807,2637.1,2637.0,3.58718]
[1729633947333,2.14807,2637.1,2637.0,0.37938]
[1729633947637,2.14807,2637.1,2637.0,3.58718]
[1729633948431,2.14807,2637.1,2637.0,0.37938]
[1729633954238,2.14807,2637.1,2637.0,0.79588]
[1729633955944,0.77807,2637.1,2637.0,0.79588]
[1729633956142,2.14807,2637.1,2637.0,0.79588]
[1729633978975,0.3987,2637.1,2637.0,0.79588]
[1729633979173,2.14807,2637.1,2637.0,0.79588]
[1729633980174,1.7687,2637.1,2637.0,0.79588]
[1729633981278,2.14807,2637.1,2637.0,0.79588]
[1729633985283,1.7687,2637.1,2637.0,0.79588]
[1729633986081,1.7687,2637.1,2637.0,0.64630027]
[1729633994784,2.14807,2637.1,2637.0,0.4165]
[1729633995293,1.7687,2637.1,2636.8,3.2078]
[1729633995482,1.37,2636.9,2636.8,3.58721]
[1729633995682,1.7494,2636.9,2636.8,3.58721]
[1729633996285,1.37,2636.9,2636.8,3.58721]
[1729633997689,1.37,2636.9,2636.8,0.37941]
[1729633998283,1.37,2636.9,2636.8,3.58721]
[1729633998883,0.776,2637.0,2636.8,3.58721]
[1729633999286,1.37,2636.9,2636.8,3.58721]
[1729633999881,1.37,2636.9,2636.8,0.37941]
[1729634000281,1.37,2636.9,2636.8,3.58721]
[1729634000690,1.37,2636.9,2636.8,0.37941]
[1729634001890,1.37,2636.9,2636.8,3.58721]
[1729634003092,1.37,2636.9,2636.8,0.37941]
[1729634003286,1.37,2636.9,2636.8,3.58721]
[1729634004392,1.37,2636.9,2636.8,0.37941]
[1729634005299,1.37,2636.9,2636.8,3.58721]
[1729634006199,1.37,2636.9,2636.8,0.37941]
[1729634006399,1.37,2636.9,2636.8,3.58721]
[1729634006994,1.37,2636.9,2636.8,0.37941]
[1729634007196,1.37,2636.9,2636.8,3.58721]
[1729634007998,1.37,2636.9,2636.8,0.37941]
[1729634008196,1.37,2636.9,2636.8,3.58721]
[1729634009099,1.37,2636.9,2636.8,0.37941]
[1729634009302,1.37,2636.9,2636.8,3.58721]
[1729634009991,1.37,2636.9,2636.8,0.37941]
[1729634010189,1.37,2636.9,2636.8,3.58721]
[1729634011691,0.3987,2637.1,2636.8,4.5778]
[1729634011900,0.77808,2637.1,2637.0,1.37]
[1729634012201,0.77808,2637.1,2637.0,1.74938]
[1729634012594,0.77808,2637.1,2637.0,0.37938]
[1729634012794,0.3987,2637.1,2637.0,0.37938]
[1729634016801,1.7687,2637.1,2637.0,0.37938]
[1729634017607,0.3987,2637.1,2637.0,0.37938]
[1729634017996,1.7687,2637.1,2637.0,0.37938]
[1729634018201,0.3987,2637.1,2637.0,0.37938]
[1729634018400,1.7687,2637.1,2637.0,0.37938]
[1729634018796,0.3987,2637.1,2637.0,0.37938]
[1729634019005,1.7687,2637.1,2637.0,0.37938]
[1729634020701,0.3987,2637.1,2637.0,0.37938]
[1729634020896,1.7687,2637.1,2637.0,0.37938]
[1729634022598,1.7687,2637.1,2637.0,3.58718]
[1729634022906,1.7687,2637.1,2637.0,0.37938]
[1729634023104,1.7687,2637.1,2637.0,3.58718]
[1729634023303,1.7687,2637.1,2637.0,0.37938]
[1729634023503,1.7687,2637.1,2637.0,3.58718]
[1729634023710,1.7687,2637.1,2637.0,0.37938]
[1729634024210,1.7687,2637.1,2637.0,3.58718]
[1729634024909,1.7687,2637.1,2637.0,0.37938]
[1729634025113,1.7687,2637.1,2637.0,3.58718]
[1729634025697,1.7687,2637.1,2637.0,0.37938]
[1729634025902,1.7687,2637.1,2637.0,3.58718]
[1729634026708,1.7687,2637.1,2637.0,0.37938]
[1729634027102,1.7687,2637.1,2637.0,3.58718]
[1729634028210,0.3987,2637.1,2637.0,3.58718]
[1729634028412,1.7687,2637.1,2637.0,3.58718]
[1729634029412,0.3987,2637.1,2637.0,7.37918]
[1729634029813,1.7687,2637.1,2636.8,0.37941]
[1729634030019,1.37,2636.9,2636.8,0.37941]
[1729634032106,1.37,2636.9,2636.7,3.2078]
[1729634032406,0.4108,2636.8,2636.7,3.58722]
[1729634032716,0.8279,2636.8,2636.7,3.58722]
[1729634035307,2.1979,2636.8,2636.7,3.58722]
[1729634038412,2.57731,2636.8,2636.7,3.2078]
[1729634039112,2.57731,2636.8,2636.4,3.2078]
[1729634039113,5.9907,2636.8,2636.4,3.2078]
[1729634039323,1.74946,2636.5,2636.4,3.2078]
[1729634039716,1.74946,2636.5,2636.4,3.58727]
[1729634040422,1.74946,2636.5,2636.4,3.2078]
[1729634042418,0.37948,2636.4,2636.2,3.58729]
[1729634042720,1.37,2636.3,2636.2,3.5873]
[1729634043920,1.37,2636.3,2636.2,0.3795]
[1729634044516,1.37,2636.3,2636.2,3.5873]
[1729634046417,1.37,2636.3,2636.2,0.3795]
[1729634046716,1.37,2636.3,2636.2,3.5873]
[1729634047129,1.37,2636.3,2636.2,3.2078]
[1729634047421,1.74949,2636.3,2636.2,3.2078]
[1729634048221,2.15409,2636.3,2636.2,3.2078]
[1729634048625,1.7746,2636.3,2636.2,3.2078]
[1729634049019,2.15409,2636.3,2636.2,3.2078]
[1729634053834,2.15409,2636.3,2636.1,0.76721]
[1729634054035,1.37,2636.2,2636.1,3.97501]
[1729634054529,1.37,2636.2,2636.1,0.76721]
[1729634054732,1.37,2636.2,2636.1,3.97501]
[1729634064927,1.37,2636.2,2636.1,0.76721]
[1729634065339,1.37,2636.2,2636.1,3.97501]
[1729634067545,1.56317551,2636.2,2636.1,3.97501]
[1729634068238,1.56317551,2636.2,2636.1,0.76721]
[1729634068540,1.56317551,2636.2,2636.1,3.97501]
[1729634069642,1.94267551,2636.2,2636.1,3.2078]
[1729634069931,1.94267551,2636.2,2636.1,3.58731]
[1729634070534,1.56317551,2636.2,2636.1,3.58731]
[1729634072543,1.56317551,2636.2,2636.1,0.37951]
[1729634072744,1.56317551,2636.2,2636.1,3.58731]
[1729634073438,1.56317551,2636.2,2636.1,0.37951]
[1729634073642,1.56317551,2636.2,2636.1,3.58731]
[1729634074638,1.56317551,2636.2,2636.0,0.4162]
[1729634074837,0.19317551,2636.2,2636.1,3.2078]
[1729634075037,1.7495,2636.2,2636.1,3.2078]
[1729634075236,1.94265652,2636.2,2636.1,3.2078]
[1729634076442,1.94265652,2636.2,2636.1,3.58731]
[1729634077636,1.94265652,2636.2,2636.1,0.37951]
[1729634090767,1.94265652,2636.2,2636.1,0.77161]
[1729634092268,2.34475652,2636.2,2636.1,0.77161]
[1729634096964,2.34475652,2636.2,2636.1,0.3921]
[1729634100270,2.34475652,2636.2,2636.1,0.77161]
[1729634100471,2.34475652,2636.2,2636.1,1.16541]
[1729634101866,2.34475652,2636.2,2636.1,0.77161]
[1729634114479,0.97475652,2636.2,2636.1,0.77161]
[1729634116485,0.97475652,2636.2,2636.1,0.3921]
[1729634124282,0.59525652,2636.2,2636.0,0.79572]
[1729634124486,0.37951,2636.1,2636.0,0.79572]
[1729634129897,0.37951,2636.1,2636.0,0.4162]
[1729634130098,0.37953,2636.0,2635.9,0.37954]
[1729634130287,2.13703,2636.0,2635.9,0.37954]
[1729634136290,2.13703,2636.0,2635.8,0.79615]
[1729634136492,1.7682,2635.9,2635.8,0.79615]
[1729634141712,1.37,2635.9,2635.8,0.79615]
[1729634142809,1.37,2635.9,2635.8,4.00395]
[1729634143111,1.37,2635.9,2635.8,0.79615]
[1729634143408,1.37,2635.9,2635.8,4.00395]
[1729634143610,1.74954,2636.0,2635.8,3.6244]
[1729634143904,1.37,2636.0,2635.9,0.80444]
[1729634144209,1.37,2636.0,2635.9,1.19004]
[1729634145813,1.7726,2636.0,2635.9,1.19004]
[1729634148110,0.4026,2636.0,2635.9,1.19004]
[1729634148311,1.7726,2636.0,2635.9,1.19004]
[1729634151520,1.7726,2636.0,2635.9,0.80444]
[1729634160223,0.4026,2636.0,2635.9,0.80444]
[1729634160523,1.37,2636.1,2636.0,0.37953]
[1729634165430,1.1867,2636.2,2636.1,0.37951]
[1729634165627,2.5567,2636.2,2636.1,0.37951]
[1729634166227,2.9362,2636.2,2636.1,0.37951]
[1729634169630,2.5567,2636.2,2636.1,0.37951]
[1729634170225,1.1867,2636.2,2636.1,0.37951]
[1729634170419,2.5567,2636.2,2636.1,0.37951]
[1729634171231,2.9362,2636.2,2636.1,0.37951]
[1729634174328,2.5567,2636.2,2636.1,0.37951]
[1729634176225,2.9362,2636.2,2636.1,0.37951]
[1729634177732,2.5567,2636.2,2636.1,0.37951]
[1729634177931,2.9362,2636.2,2636.1,0.37951]
[1729634179326,2.5567,2636.2,2636.1,0.37951]
[1729634194640,2.9362,2636.2,2636.1,0.37951]
[1729634198543,2.5567,2636.2,2636.1,0.37951]
[1729634198935,1.1867,2636.2,2636.1,0.37951]
[1729634218065,0.8004,2636.2,2636.1,0.37951]
[1729634218365,0.8004,2636.2,2636.1,0.78981]
[1729634219459,0.8004,2636.2,2636.1,0.37951]
[1729634219664,1.5664,2636.2,2636.1,0.37951]
[1729634225067,1.1869,2636.2,2636.1,0.37951]
[1729634225764,1.5664,2636.2,2636.1,0.37951]
[1729634226562,1.1869,2636.2,2636.1,0.37951]
[1729634227567,0.8004,2636.2,2636.1,0.37951]
[1729634228373,0.4078,2636.2,2636.1,0.37951]
[1729634239875,0.8305,2636.2,2636.1,0.37951]
[1729634245783,0.4078,2636.2,2636.1,0.37951]
[1729634246082,0.4078,2636.2,2636.1,4.56801]
[1729634248282,0.4078,2636.2,2636.1,0.77441]
[1729634249388,0.4078,2636.2,2636.1,3.98221]
[1729634253588,1.37,2636.3,2636.1,4.9727]
[1729634253895,1.37,2636.3,2636.2,0.7909]
[1729634256188,0.8366,2636.4,2636.3,0.37949]
[1729634256396,2.2066,2636.4,2636.3,0.37949]
[1729634256793,0.8366,2636.4,2636.3,0.37949]
[1729634256996,1.37,2636.5,2636.3,3.7928]
[1729634257204,3.9908,2637.0,2636.3,3.7928]
[1729634257205,1.37,2636.6,2636.5,0.37946]
[1729634257407,1.37,2636.6,2636.5,0.77196]
[1729634257703,0.4221,2636.7,2636.6,0.37944]
[1729634258103,1.37,2636.8,2636.5,2.1538]
[1729634258305,0.3986,2636.9,2636.7,1.37]
[1729634258515,1.7686,2636.9,2636.8,0.37941]
[1729634260703,0.3986,2636.9,2636.8,0.37941]
[1729634260902,1.7686,2636.9,2636.8,0.79081]
[1729634280620,1.7686,2636.9,2636.8,3.99861]
[1729634281621,1.7686,2636.9,2636.8,0.79081]
[1729634281829,1.7686,2636.9,2636.8,3.99861]
[1729634282623,1.7686,2636.9,2636.8,0.79081]
[1729634282822,1.7686,2636.9,2636.8,3.99861]
[1729634286334,1.7686,2636.9,2636.8,0.79081]
[1729634286526,1.7686,2636.9,2636.8,3.99861]
[1729634287027,1.7686,2636.9,2636.8,0.79081]
[1729634287232,1.7686,2636.9,2636.8,3.99861]
[1729634287628,1.7686,2636.9,2636.8,0.79081]
[1729634288235,1.7686,2636.9,2636.8,3.99861]
[1729634288429,1.7686,2636.9,2636.8,0.79081]
[1729634288827,1.7686,2636.9,2636.8,3.99861]
[1729634289231,1.7686,2636.9,2636.8,0.79081]
[1729634289429,1.7686,2636.9,2636.8,3.99861]
[1729634289832,1.7686,2636.9,2636.8,0.79081]
[1729634290032,1.7686,2636.9,2636.8,3.99861]
[1729634290725,1.7686,2636.9,2636.8,0.79081]
[1729634291337,1.7686,2636.9,2636.8,3.99861]
[1729634291840,1.7686,2636.9,2636.8,0.79081]
[1729634292929,1.7686,2636.9,2636.8,3.99861]
[1729634293538,1.7686,2636.9,2636.8,0.79081]
[1729634293740,1.7686,2636.9,2636.8,3.99861]
[1729634294534,0.3986,2636.9,2636.8,3.99861]